bitfinex/quotes_SOLUSD_20240811
["timestamp","ask_amount","ask_price","bid_price","bid_amount"]
[1723340120611,15.8329,155.0,154.92,9.62]
[1723340120898,15.8329,155.0,154.93,10.91059596]
[1723340121096,9.62,154.99,154.92,9.62]
[1723340121405,9.62,154.98,154.91,9.62]
[1723340121609,9.62,154.98,154.94,6.454]
[1723340121779,9.62,154.98,154.95,0.12549]
[1723340121981,9.62,154.97,154.94,6.454]
[1723340122986,9.62,154.96,154.94,6.454]
[1723340123390,9.62,154.96,154.85,9.68818972]
[1723340123391,9.62,154.95,154.91,6.4549]
[1723340123585,9.62,154.94,154.91,6.4549]
[1723340123896,35.392,154.96,154.91,6.4549]
[1723340124094,35.392,154.96,154.86,19.23]
[1723340124696,35.392,154.96,154.87,20.0]
[1723340124893,35.392,154.96,154.88,0.25098]
[1723340125106,35.392,154.96,154.89,0.37647]
[1723340125306,35.392,154.96,154.9,0.25098]
[1723340125515,35.392,154.96,154.91,0.25098]
[1723340125683,35.392,154.96,154.93,6.4544]
[1723340126596,35.392,154.96,154.92,6.4549]
[1723340126990,35.392,154.96,154.9,6.4553]
[1723340127191,41.8454,154.96,154.9,6.4553]
[1723340127699,35.392,154.96,154.91,6.455]
[1723340129321,35.392,154.96,154.89,1.54201307]
[1723340129322,16.162,154.96,154.89,1.54201307]
[1723340129613,16.162,154.96,154.93,6.4541]
[1723340133512,16.162,154.96,154.91,0.12549]
[1723340133718,16.162,154.96,154.95,6.4536]
[1723340133900,41.6049,155.0,154.96,6.4532]
[1723340135404,22.3749,155.0,154.91,1.5416972]
[1723340135707,22.3749,155.0,154.97,6.4524]
[1723340137549,0.8473721,155.02,154.98,6.4524]
[1723340138396,0.8473721,155.02,154.97,0.12549]
[1723340138590,0.8473721,155.02,154.97,0.25098]
[1723340138591,20.0773721,155.02,154.97,0.25098]
[1723340139017,20.0773721,155.02,154.97,0.12549]
[1723340139713,20.0773721,155.02,154.97,6.57829]
[1723340140121,26.5281721,155.02,154.96,6.70418]
[1723340140306,19.23,155.0,154.91,0.12549]
[1723340140506,19.23,155.0,154.95,6.4536]
[1723340142225,19.23,155.0,154.94,6.4539]
[1723340142399,25.6816,155.0,154.94,6.4539]
[1723340143097,25.6816,155.0,154.95,6.4536]
[1723340144001,19.23,155.0,154.97,6.4527]
[1723340145112,19.23,155.0,154.91,0.12549]
[1723340145313,19.23,154.98,154.91,65.50196]
[1723340145508,19.23,154.98,154.91,65.37647]
[1723340145710,19.23,154.98,154.92,0.12549]
[1723340145925,19.23,154.98,154.92,0.37647]
[1723340147334,19.23,154.98,154.96,6.4531]
[1723340147912,19.23,154.98,154.95,6.4536]
[1723340148316,25.6834,154.96,154.86,29.6476]
[1723340148618,19.23,154.96,154.86,29.6476]
[1723340148815,19.23,154.96,154.92,6.4545]
[1723340149138,19.23,154.96,154.93,6.4545]
[1723340149820,19.23,154.98,154.92,0.12549]
[1723340150036,19.23,154.98,154.92,0.25098]
[1723340150229,22.9937,154.99,154.93,0.12549]
[1723340150726,22.9937,154.99,154.96,6.4532]
[1723340152312,22.9937,154.99,154.95,6.4536]
[1723340155547,19.23,154.98,154.94,6.454]
[1723340156224,25.6825,154.98,154.93,0.12549]
[1723340158535,25.6825,154.98,154.92,0.12549]
[1723340158742,19.23,154.96,154.9,0.12549]
[1723340158944,25.6833,154.96,154.9,6.4557]
[1723340160217,19.23,154.92,154.89,6.4561]
[1723340160544,19.23,154.92,154.88,6.4565]
[1723340161241,19.23,154.92,154.79,0.06821615]
[1723340161242,19.23,154.9,154.79,0.06821615]
[1723340161437,19.23,154.88,154.78,29.6476]
[1723340161622,19.23,154.88,154.78,39.76752478]
[1723340162316,19.23,154.86,154.83,6.4586]
[1723340164455,19.23,154.86,154.84,6.4582]
[1723340165156,22.6873,154.87,154.84,6.4582]
[1723340170243,19.23,154.86,154.79,0.12549]
[1723340170548,19.23,154.86,154.81,6.4595]
[1723340170848,25.6875,154.86,154.81,6.4595]
[1723340171748,19.23,154.86,154.81,6.4595]
[1723340172063,19.23,154.86,154.83,6.4586]
[1723340172652,19.23,154.86,154.82,6.4591]
[1723340173064,25.6875,154.86,154.79,0.37647]
[1723340173272,25.6875,154.86,154.8,6.4595]
[1723340173567,25.6875,154.86,154.81,6.4593]
[1723340173759,19.23,154.86,154.82,6.459]
[1723340176038,19.23,154.86,154.81,6.4595]
[1723340176243,19.23,154.86,154.79,6.46]
[1723340176575,19.23,154.84,154.8,6.4597]
[1723340177869,19.23,154.84,154.79,6.4603]
[1723340181768,9.63,154.82,154.79,6.4603]
[1723340182272,9.63,154.82,154.8,6.4599]
[1723340183280,9.63,154.82,154.8,6.43089361]
[1723340185082,9.63,154.83,154.8,6.43089361]
[1723340193376,6.4603,154.8,154.74,6.462]
[1723340193578,22.4562,154.81,154.76,6.4613]
[1723340193768,9.63,154.8,154.72,9.63]
[1723340194780,9.63,154.8,154.77,6.4611]
[1723340194959,9.63,154.8,154.76,6.4615]
[1723340195869,9.63,154.8,154.73,0.25098]
[1723340195870,9.63,154.79,154.73,0.25098]
[1723340196073,9.63,154.77,154.7,20.0476]
[1723340196380,9.63,154.77,154.7,10.4176]
[1723340196681,9.63,154.77,154.7,9.63]
[1723340196980,28.9159,154.81,154.75,6.4619]
[1723340197280,9.63,154.79,154.72,9.63]
[1723340197469,9.63,154.79,154.73,1.41789362]
[1723340198158,9.63,154.79,154.75,6.4619]
[1723340200485,9.63,154.78,154.75,6.4619]
[1723340202867,9.63,154.78,154.71,0.37647]
[1723340203067,9.63,154.78,154.72,0.12549]
[1723340205893,9.63,154.78,154.74,6.4622]
[1723340206093,22.4562,154.81,154.72,11.17329627]
[1723340206394,9.63,154.8,154.75,0.12549]
[1723340206692,9.63,154.8,154.75,6.4619]
[1723340206887,9.63,154.79,154.75,6.4619]
[1723340207195,9.63,154.78,154.73,6.4624]
[1723340207577,6.4605,154.79,154.73,6.4624]
[1723340207782,9.63,154.78,154.74,6.4623]
[1723340214569,22.4562,154.81,154.73,0.12549]
[1723340214772,9.63,154.79,154.73,45.37647]
[1723340214970,20.0,154.8,154.74,0.12549]
[1723340215401,22.4562,154.81,154.78,6.4604]
[1723340215697,22.4562,154.81,154.75,9.63]
[1723340215698,15.8752,154.81,154.76,10.9221668]
[1723340215992,15.8752,154.81,154.77,11.04752974]
[1723340216301,21.7616,154.85,154.81,6.4594]
[1723340216467,31.3916,154.85,154.81,6.4594]
[1723340217692,21.7616,154.85,154.81,6.4594]
[1723340218187,21.7616,154.85,154.8,6.4599]
[1723340218188,31.3916,154.85,154.8,6.4599]
[1723340222480,31.3916,154.85,154.81,6.4594]
[1723340222682,21.7616,154.85,154.81,6.4594]
[1723340222880,21.7616,154.85,154.78,9.88098]
[1723340223086,9.63,154.88,154.83,6.4584]
[1723340223380,37.8478,154.89,154.84,6.4582]
[1723340223873,21.7616,154.89,154.86,6.4571]
[1723340224279,21.7616,154.89,154.85,6.4578]
[1723340224585,9.63,154.88,154.83,6.58409]
[1723340224794,9.63,154.88,154.83,6.4586]
[1723340225003,28.2181,154.89,154.77,15.9997]
[1723340225004,9.63,154.84,154.77,15.9997]
[1723340225202,9.63,154.83,154.76,9.63]
[1723340225497,9.63,154.83,154.77,20.0]
[1723340226200,9.63,154.82,154.74,20.0476]
[1723340226400,31.3916,154.83,154.79,6.4602]
[1723340226888,9.63,154.82,154.78,6.4607]
[1723340227196,21.7616,154.83,154.75,9.63]
[1723340227197,21.7616,154.83,154.79,6.4602]
[1723340227402,9.63,154.82,154.79,6.4602]
[1723340227589,9.63,154.82,154.74,20.0476]
[1723340227788,41.0216,154.83,154.74,10.4176]
[1723340228304,41.0216,154.83,154.75,45.25098]
[1723340228798,6.4591,154.82,154.77,6.4611]
[1723340229102,47.4803,154.83,154.77,6.4611]
[1723340229602,47.4803,154.83,154.78,6.4605]
[1723340229901,41.0216,154.83,154.78,6.4605]
[1723340232598,41.0216,154.83,154.76,0.12549]
[1723340232904,41.0216,154.83,154.8,6.4598]
[1723340235406,21.7616,154.83,154.8,6.4598]
[1723340235608,21.7616,154.83,154.78,6.4603]
[1723340236101,41.0216,154.83,154.78,6.4603]
[1723340236512,47.4805,154.83,154.77,6.4611]
[1723340236804,19.26,154.81,154.77,6.4611]
[1723340237005,19.26,154.81,154.76,0.12549]
[1723340237405,19.26,154.81,154.71,39.26]
[1723340237814,19.26,154.81,154.76,6.4615]
[1723340238803,25.7195,154.81,154.76,6.4615]
[1723340240901,19.26,154.79,154.72,0.12549]
[1723340241211,25.7203,154.79,154.74,6.4622]
[1723340241408,25.7203,154.79,154.73,6.4628]
[1723340241812,19.26,154.77,154.72,6.4631]
[1723340242196,25.7212,154.77,154.72,6.4631]
[1723340242407,19.26,154.75,154.7,6.464]
[1723340242604,15.7175,154.74,154.7,6.464]
[1723340247804,25.3575,154.74,154.7,6.464]
[1723340248307,25.3575,154.74,154.71,6.4633]
[1723340249922,31.9975,154.74,154.71,6.4633]
[1723340257029,22.3575,154.74,154.72,6.4631]
[1723340257211,22.3575,154.74,154.73,6.4628]
[1723340261134,6.4074,154.78,154.74,6.4622]
[1723340261436,6.4074,154.78,154.75,6.4618]
[1723340262319,16.0474,154.78,154.72,6.4629]
[1723340263816,22.5082,154.78,154.72,6.4629]
[1723340264145,9.64,154.76,154.71,6.4636]
[1723340264438,9.64,154.75,154.71,6.4636]
[1723340264939,9.64,154.75,154.72,6.4631]
[1723340266519,9.64,154.75,154.73,6.4627]
[1723340266848,9.64,154.76,154.73,6.4627]
[1723340272656,9.64,154.77,154.74,6.4624]
[1723340277254,9.64,154.77,154.73,6.4627]
[1723340277459,9.64,154.75,154.73,6.4627]
[1723340277764,9.64,154.74,154.71,6.4633]
[1723340278223,9.64,154.74,154.72,6.4631]
[1723340279152,9.64,154.75,154.72,6.4631]
[1723340280633,9.64,154.76,154.74,6.4624]
[1723340281043,9.64,154.77,154.74,6.4624]
[1723340281228,20.0,154.76,154.74,6.4624]
[1723340282251,20.0,154.76,154.73,6.4628]
[1723340283542,29.64,154.76,154.69,9.64]
[1723340286067,29.64,154.76,154.68,9.76549]
[1723340287539,29.64,154.76,154.69,9.64]
[1723340288963,20.0,154.76,154.7,10.93270808]
[1723340289772,20.0,154.76,154.72,6.4632]
[1723340290872,16.1012,154.77,154.72,6.4632]
[1723340291060,9.64,154.77,154.73,6.4628]
[1723340291359,22.5082,154.78,154.73,6.4628]
[1723340291566,20.0,154.77,154.73,6.4628]
[1723340292069,6.4074,154.78,154.74,6.4624]
[1723340293860,12.8682,154.78,154.73,6.4628]
[1723340294057,22.5082,154.78,154.72,1.29253957]
[1723340294262,9.64,154.76,154.69,9.64]
[1723340294463,9.64,154.76,154.7,0.50196]
[1723340295226,9.64,154.77,154.7,10.14196]
[1723340295490,6.4616,154.76,154.7,10.14196]
[1723340295785,9.64,154.77,154.7,10.14196]
[1723340295956,15.2887,154.79,154.73,9.64]
[1723340296164,16.0994,154.82,154.75,9.64]
[1723340296772,16.0994,154.82,154.76,6.4615]
[1723340296949,6.4604,154.79,154.73,9.64]
[1723340297853,9.64,154.8,154.75,6.462]
[1723340300000,9.64,154.8,154.65,2.65967609]
[1723340300001,16.1008,154.78,154.7,9.76549]
[1723340300300,9.64,154.78,154.71,0.12549]
[1723340301291,9.64,154.78,154.74,6.4624]
[1723340302169,9.64,154.77,154.74,6.4624]
[1723340306388,9.64,154.78,154.75,6.462]
[1723340310399,9.64,154.78,154.74,6.4623]
[1723340312597,9.64,154.76,154.71,6.4633]
[1723340312898,9.64,154.76,154.72,6.463]
[1723340313088,9.64,154.76,154.73,6.4628]
[1723340314996,9.64,154.76,154.74,6.4623]
[1723340315304,15.6897,154.77,154.74,6.4623]
[1723340318104,15.6897,154.77,154.69,9.89098]
[1723340318315,9.64,154.76,154.72,6.4629]
[1723340321404,9.64,154.76,154.73,6.4628]
[1723340321606,6.0497,154.77,154.73,6.4628]
[1723340321912,9.64,154.76,154.73,6.4628]
[1723340324906,9.64,154.76,154.72,6.4632]
[1723340332728,12.5109,154.77,154.72,6.4632]
[1723340333016,29.64,154.76,154.72,6.4632]
[1723340334317,20.0,154.76,154.7,9.64]
[1723340334524,6.0497,154.77,154.75,6.4619]
[1723340335009,6.0497,154.77,154.74,6.4623]
[1723340338020,15.249,154.78,154.74,6.4623]
[1723340340257,15.249,154.78,154.71,9.64]
[1723340340258,6.0897,154.82,154.71,9.64]
[1723340340403,15.3603,154.81,154.77,6.4609]
[1723340341925,15.3603,154.81,154.75,7.75383233]
[1723340342226,15.3603,154.81,154.77,6.4607]
[1723340342435,15.3603,154.81,154.78,6.4606]
[1723340342721,15.3603,154.81,154.77,6.4611]
[1723340342893,31.46,154.81,154.76,6.4615]
[1723340343098,9.64,154.8,154.73,9.64]
[1723340343402,9.64,154.8,154.74,0.12549]
[1723340344029,9.64,154.8,154.75,6.4616]
[1723340344930,9.64,154.78,154.74,6.4624]
[1723340345127,9.64,154.77,154.73,6.4628]
[1723340345338,9.64,154.76,154.72,6.4632]
[1723340346038,9.64,154.76,154.73,6.4627]
[1723340346246,9.64,154.77,154.73,6.4627]
[1723340347037,9.64,154.75,154.73,6.4627]
[1723340348227,9.64,154.76,154.73,6.4627]
[1723340348838,9.64,154.76,154.74,6.4623]
[1723340349018,16.2125,154.77,154.75,6.4617]
[1723340349214,16.2125,154.77,154.74,6.4624]
[1723340350441,16.2125,154.77,154.75,6.462]
[1723340350637,16.2125,154.77,154.74,6.4624]
[1723340351260,9.64,154.76,154.73,6.4628]
[1723340351420,9.64,154.75,154.73,6.4628]
[1723340351736,9.64,154.76,154.74,6.4624]
[1723340352319,9.64,154.79,154.76,6.4616]
[1723340352516,9.64,154.8,154.77,6.4611]
[1723340352715,31.5728,154.81,154.78,6.4607]
[1723340353157,31.5728,154.81,154.77,6.4611]
[1723340353949,9.64,154.79,154.75,6.4616]
[1723340354253,9.64,154.77,154.73,6.4624]
[1723340354418,9.64,154.76,154.73,6.4624]
[1723340354621,9.64,154.77,154.73,6.4624]
[1723340354825,9.64,154.78,154.74,6.4623]
[1723340355456,9.64,154.76,154.72,6.4631]
[1723340357627,9.64,154.74,154.67,10.54309]
[1723340357831,9.64,154.73,154.67,10.54309]
[1723340358557,9.64,154.74,154.67,10.54309]
[1723340358729,9.64,154.74,154.71,6.4636]
[1723340362779,9.64,154.74,154.72,6.4632]
[1723340362950,9.64,154.75,154.73,6.4628]
[1723340363139,15.5913,154.76,154.73,6.4628]
[1723340363338,25.2313,154.76,154.73,6.4628]
[1723340364366,9.64,154.75,154.73,6.4628]
[1723340365569,9.64,154.75,154.72,6.4632]
[1723340366158,9.64,154.74,154.72,6.4632]
[1723340367362,9.64,154.73,154.67,10.4176]
[1723340368434,9.64,154.73,154.71,6.4634]
[1723340368631,28.1387,154.76,154.67,10.4176]
[1723340368632,9.64,154.74,154.72,6.4632]
[1723340370448,28.4311045,154.8,154.71,9.64]
[1723340370654,6.10831169,154.88,154.73,10.4176]
[1723340370655,21.677,154.84,154.73,10.4176]
[1723340370983,21.677,154.84,154.8,6.4598]
[1723340370984,38.0664633,154.84,154.8,6.4598]
[1723340371256,38.0664633,154.84,154.79,6.4603]
[1723340371257,31.317,154.84,154.79,6.4603]
[1723340371675,15.5913,154.84,154.81,6.4595]
[1723340372458,9.64,154.86,154.81,6.4595]
[1723340373678,9.64,154.87,154.82,6.459]
[1723340373849,21.677,154.88,154.83,9.64]
[1723340374061,6.4557,154.91,154.84,9.64]
[1723340374062,16.0957,154.91,154.84,9.64]
[1723340374270,22.84367735,154.91,154.84,9.64]
[1723340374476,6.74797735,154.91,154.87,6.457]
[1723340374660,6.74797735,154.91,154.88,6.4565]
[1723340374857,21.677,154.92,154.88,6.4565]
[1723340375962,15.5913,154.92,154.88,6.4565]
[1723340376372,15.5913,154.92,154.86,16.0971]
[1723340376562,6.4558,154.9,154.85,6.4578]
[1723340376765,16.0958,154.9,154.84,6.4582]
[1723340377761,6.4558,154.9,154.84,6.4582]
[1723340377958,6.4562,154.89,154.82,6.4587]
[1723340378166,6.4566,154.88,154.82,6.4587]
[1723340378780,25.3208,154.89,154.83,6.4584]
[1723340378975,31.777,154.89,154.83,6.4584]
[1723340379859,6.4567,154.88,154.83,6.4584]
[1723340380058,25.3208,154.89,154.81,6.4591]
[1723340380059,19.24,154.87,154.81,6.4591]
[1723340380383,25.697,154.87,154.82,6.459]
[1723340380567,19.24,154.87,154.82,6.459]
[1723340381459,25.6972,154.87,154.79,0.12549]
[1723340381670,19.24,154.85,154.76,19.24]
[1723340381880,19.24,154.85,154.79,6.4601]
[1723340382068,16.076,154.84,154.79,6.4601]
[1723340382788,19.24,154.83,154.74,19.24]
[1723340382972,19.24,154.83,154.78,6.4603]
[1723340383303,19.24,154.81,154.71,10.4176]
[1723340383602,25.6997,154.81,154.71,29.6576]
[1723340383778,19.24,154.81,154.76,6.4612]
[1723340384303,19.24,154.81,154.77,6.4609]
[1723340386299,19.24,154.81,154.71,29.6576]
[1723340386300,25.6996,154.81,154.76,6.4615]
[1723340387977,19.24,154.81,154.77,6.4611]
[1723340388380,25.6997,154.81,154.75,6.4616]
[1723340388588,25.6997,154.81,154.76,6.4615]
[1723340389382,25.6997,154.81,154.75,6.4619]
[1723340389694,25.7003,154.79,154.74,6.4624]
[1723340390207,16.076,154.77,154.7,0.12549]
[1723340390387,16.076,154.77,154.7,0.37647]
[1723340390587,35.316,154.77,154.67,29.6576]
[1723340390795,35.316,154.77,154.73,6.4628]
[1723340392312,16.076,154.77,154.69,19.24]
[1723340392602,16.076,154.77,154.7,0.25098]
[1723340392821,16.076,154.77,154.74,6.462]
[1723340396218,6.0808,154.82,154.69,19.24]
[1723340396511,16.6034,154.8,154.75,6.4619]
[1723340397709,26.2334,154.8,154.75,6.4619]
[1723340397907,32.6935,154.8,154.74,6.4624]
[1723340398090,9.63,154.78,154.74,6.4624]
[1723340399206,26.2334,154.8,154.73,9.63]
[1723340400385,16.6034,154.8,154.77,6.4611]
[1723340400810,16.6034,154.8,154.73,9.63]
[1723340401016,16.6034,154.8,154.74,0.12549]
[1723340401187,23.0633,154.8,154.75,6.462]
[1723340401702,16.6034,154.8,154.79,6.4603]
[1723340401884,16.6034,154.8,154.78,6.4607]
[1723340402085,6.0808,154.82,154.79,6.4603]
[1723340402515,6.0808,154.82,154.78,6.4607]
[1723340402899,6.0808,154.82,154.78,6.4606]
[1723340403218,6.0808,154.82,154.79,6.4603]
[1723340407032,16.6034,154.84,154.78,10.92200154]
[1723340407317,16.6034,154.84,154.81,9.63]
[1723340407517,16.6034,154.84,154.8,9.63]
[1723340408013,16.6034,154.84,154.79,0.12549]
[1723340408014,16.6034,154.84,154.79,9.75549]
[1723340408221,16.6034,154.84,154.81,6.4594]
[1723340410114,16.6034,154.84,154.79,9.75549]
[1723340410115,16.6034,154.84,154.8,10.92188526]
[1723340410301,6.3703,154.86,154.83,6.4582]
[1723340410496,6.3703,154.86,154.84,6.4579]
[1723340410908,6.3703,154.86,154.83,6.4586]
[1723340411706,6.3703,154.86,154.82,9.63]
[1723340411707,6.3703,154.86,154.84,6.4582]
[1723340412220,16.6034,154.88,154.85,9.63]
[1723340412386,16.6034,154.92,154.86,10.9213555]
[1723340412592,16.6034,154.92,154.83,0.12549]
[1723340412593,16.6034,154.92,154.88,6.4565]
[1723340413120,16.6034,154.92,154.87,6.457]
[1723340414401,16.0857,154.9,154.84,6.4582]
[1723340415821,6.4557,154.9,154.84,6.4582]
[1723340416117,6.4557,154.9,154.85,6.4578]
[1723340416617,6.4557,154.9,154.82,0.12549]
[1723340416816,19.24,154.89,154.84,6.458]
[1723340417023,12.8224,154.9,154.84,6.458]
[1723340417228,6.3665,154.9,154.85,6.4574]
[1723340419241,6.3665,154.9,154.83,19.24]
[1723340419427,6.3665,154.9,154.84,1.66781004]
[1723340419636,6.3665,154.9,154.85,19.24]
[1723340420362,6.3665,154.9,154.87,6.4569]
[1723340420533,6.3665,154.9,154.86,6.4573]
[1723340422125,12.8224,154.9,154.84,0.37647]
[1723340423448,12.8224,154.9,154.81,19.24]
[1723340423649,6.4564,154.89,154.84,6.4582]
[1723340423851,6.4566,154.88,154.82,6.4587]
[1723340424355,6.4566,154.88,154.79,19.24]
[1723340424356,6.4566,154.88,154.83,6.4586]
[1723340425657,19.24,154.89,154.84,6.4582]
[1723340425956,12.8226,154.9,154.82,0.12549]
[1723340426156,12.8226,154.9,154.82,0.37647]
[1723340426569,6.3665,154.9,154.84,0.12549]
[1723340426753,16.6034,154.92,154.87,19.24]
[1723340427066,16.6034,154.92,154.91,6.4553]
[1723340427635,16.6034,154.92,154.89,6.4561]
[1723340427965,16.6034,154.92,154.87,6.457]
[1723340428467,16.6034,154.92,154.88,6.4564]
[1723340429457,16.6034,154.92,154.85,19.24]
[1723340429458,16.6034,154.92,154.89,6.4559]
[1723340429775,16.6034,154.92,154.9,6.4556]
[1723340430136,16.6034,154.92,154.88,6.4565]
[1723340430342,16.6034,154.92,154.85,0.12549]
[1723340430559,23.0583,154.92,154.85,0.50196]
[1723340430750,23.0583,154.92,154.86,6.457]
[1723340431067,16.6034,154.92,154.87,6.4568]
[1723340432644,16.6034,154.92,154.88,6.4565]
[1723340434439,19.24,154.91,154.81,19.24]
[1723340434645,19.24,154.91,154.82,65.50196]
[1723340434866,19.24,154.91,154.82,45.50196]
[1723340435055,6.3665,154.9,154.82,0.37647]
[1723340435453,19.24,154.89,154.85,6.4578]
[1723340435971,12.8223,154.9,154.85,6.4578]
[1723340438072,12.8223,154.9,154.82,0.37647]
[1723340438073,19.24,154.89,154.83,6.4583]
[1723340438261,16.1295,154.88,154.83,6.4583]
[1723340439671,22.5862,154.88,154.83,6.4583]
[1723340439876,16.1295,154.88,154.83,6.4583]
[1723340440768,16.1295,154.88,154.84,6.458]
[1723340443970,16.1295,154.88,154.83,6.4586]
[1723340444176,6.4575,154.86,154.78,0.12549]
[1723340444373,6.4575,154.86,154.78,20.0]
[1723340444558,16.1295,154.84,154.75,19.24]
[1723340444757,16.1295,154.84,154.73,19.24]
[1723340444758,25.8755,154.83,154.73,19.24]
[1723340444977,25.8755,154.83,154.79,6.4602]
[1723340445278,32.3342,154.83,154.73,19.24]
[1723340446064,19.24,154.79,154.75,6.4616]
[1723340446259,19.24,154.79,154.69,19.24]
[1723340446460,16.1295,154.8,154.71,19.24]
[1723340447189,16.1295,154.8,154.79,6.4603]
[1723340448362,6.6355,154.83,154.78,0.12549]
[1723340448570,6.6355,154.83,154.78,1.79386632]
[1723340448769,6.6355,154.83,154.82,6.4591]
[1723340448985,6.6355,154.83,154.78,0.50196]
[1723340449361,6.6355,154.83,154.82,6.4591]
[1723340449564,16.1295,154.85,154.84,6.4582]
[1723340450873,6.6355,154.87,154.86,6.4574]
[1723340452784,6.6355,154.87,154.85,6.4578]
[1723340453980,6.6355,154.87,154.82,6.4587]
[1723340455978,13.0925,154.87,154.81,6.4594]
[1723340456493,6.6355,154.87,154.79,19.24]
[1723340456794,6.6355,154.87,154.83,19.24]
[1723340457164,6.6355,154.87,154.85,6.4578]
[1723340458086,6.6355,154.87,154.86,6.4574]
[1723340458283,16.1295,154.89,154.86,6.4574]
[1723340459582,16.1295,154.89,154.85,6.4578]
[1723340461770,16.1295,154.89,154.83,6.4584]
[1723340461965,6.4567,154.88,154.83,6.4584]
[1723340462165,6.4567,154.88,154.82,6.459]
[1723340462385,6.4567,154.88,154.8,45.25098]
[1723340462588,16.1295,154.89,154.85,6.4577]
[1723340464291,16.1295,154.89,154.81,20.53172313]
[1723340464292,22.5857,154.89,154.83,6.4583]
[1723340466984,6.4566,154.88,154.83,6.4583]
[1723340468293,41.8257,154.89,154.83,6.4583]
[1723340469684,16.1295,154.89,154.85,6.4578]
[1723340470369,16.1295,154.89,154.84,6.4582]
[1723340470996,16.1295,154.89,154.85,6.4578]
[1723340471168,16.1295,154.89,154.8,0.25098]
[1723340471169,16.1295,154.89,154.84,0.12549]
[1723340471479,15.9264,154.93,154.9,6.4557]
[1723340472492,22.3809,154.93,154.87,6.4566]
[1723340472682,15.9264,154.93,154.85,19.24]
[1723340472874,15.9264,154.93,154.86,0.12549]
[1723340473705,15.9264,154.93,154.89,6.4561]
[1723340474804,15.9264,154.93,154.88,6.4565]
[1723340475295,15.9264,154.93,154.89,6.456]
[1723340475495,15.9264,154.93,154.9,6.4557]
[1723340476078,15.9264,154.93,154.89,6.4561]
[1723340477388,15.9264,154.93,154.92,6.4549]
[1723340478105,6.5463,154.95,154.93,6.4542]
[1723340478401,16.0931,154.97,154.91,19.24]
[1723340478581,16.0931,154.97,154.94,6.454]
[1723340480002,19.24,154.96,154.87,19.24]
[1723340480302,6.4541,154.94,154.89,6.456]
[1723340480489,19.24,154.96,154.9,6.4557]
[1723340480490,6.4537,154.95,154.9,6.4557]
[1723340480688,25.6933,154.96,154.9,6.4557]
[1723340480890,6.4539,154.95,154.9,6.4557]
[1723340483074,25.3916,154.94,154.85,19.24]
[1723340483275,25.36839549,154.94,154.83,19.24]
[1723340483476,22.5476,154.93,154.87,6.4566]
[1723340483693,16.0931,154.93,154.85,19.24]
[1723340484299,16.0931,154.93,154.86,45.12549]
[1723340484603,16.0931,154.93,154.9,6.4554]
[1723340485190,16.0931,154.93,154.86,45.12549]
[1723340485191,22.5476,154.93,154.86,0.12549]